[Event "Late-Titled-Tuesday-Blitz-December-26-2023"]
[Site "Chess.com"]
[Date "2023.12.26"]
[Round "1"]
[White "NoHeThTo"]
[Black "patzersame"]
[Result "1-0"]
[WhiteElo "2667"]
[BlackElo "2361"]
[TimeControl "180+1"]
[EndTime "14:01:43 PST"]
[Termination "NoHeThTo won by checkmate"]

1. d4 {[%clk 0:03:00.9]} 1... c6 {[%clk 0:02:59.2]} 2. e4 {[%clk 0:02:58.5]}
2... d5 {[%clk 0:02:59.3]} 3. e5 {[%clk 0:02:58]} 3... Bf5 {[%clk 0:02:58.7]} 4.
h4 {[%clk 0:02:58]} 4... h5 {[%clk 0:02:58.2]} 5. Bd3 {[%clk 0:02:57.7]} 5...
Bxd3 {[%clk 0:02:58]} 6. Qxd3 {[%clk 0:02:58.6]} 6... Nd7 {[%clk 0:02:57]} 7. e6
{[%clk 0:02:57.9]} 7... Ndf6 {[%clk 0:02:57.1]} 8. exf7+ {[%clk 0:02:58.1]} 8...
Kxf7 {[%clk 0:02:57]} 9. Nf3 {[%clk 0:02:58.8]} 9... e6 {[%clk 0:02:28.9]} 10.
Ne5+ {[%clk 0:02:53.4]} 10... Ke8 {[%clk 0:02:20]} 11. Qg6+ {[%clk 0:02:52.1]}
11... Ke7 {[%clk 0:02:20]} 12. Qf7+ {[%clk 0:02:52.4]} 12... Kd6 {[%clk
0:02:20]} 13. Bf4 {[%clk 0:02:50.9]} 13... Nh6 {[%clk 0:02:12.5]} 14. Nc4#
{[%clk 0:02:44.7]} 1-0

[Event "Late-Titled-Tuesday-Blitz-December-26-2023"]
[Site "Chess.com"]
[Date "2023.12.26"]
[Round "1"]
[White "DishonorOnYourCow"]
[Black "dmarcolino"]
[Result "1-0"]
[WhiteElo "2530"]
[BlackElo "2101"]
[TimeControl "180+1"]
[EndTime "14:02:47 PST"]
[Termination "DishonorOnYourCow won by resignation"]

1. d4 {[%clk 0:02:59.6]} 1... d5 {[%clk 0:02:58.4]} 2. c4 {[%clk 0:03:00]} 2...
c6 {[%clk 0:02:56]} 3. Nf3 {[%clk 0:02:59.4]} 3... Nf6 {[%clk 0:02:56.2]} 4. e3
{[%clk 0:03:00]} 4... e6 {[%clk 0:02:53.7]} 5. b3 {[%clk 0:02:58.7]} 5... Bd6
{[%clk 0:02:48.8]} 6. Bd3 {[%clk 0:02:58.5]} 6... O-O {[%clk 0:02:48.2]} 7. O-O
{[%clk 0:02:58]} 7... Nbd7 {[%clk 0:02:48.8]} 8. Bb2 {[%clk 0:02:58.4]} 8... b6
{[%clk 0:02:48.3]} 9. Nbd2 {[%clk 0:02:58.2]} 9... Bb7 {[%clk 0:02:48.3]} 10.
Ne5 {[%clk 0:02:58.2]} 10... Qe7 {[%clk 0:02:40.1]} 11. f4 {[%clk 0:02:57.9]}
11... Rad8 {[%clk 0:02:32.9]} 12. Qf3 {[%clk 0:02:57.4]} 12... c5 {[%clk
0:02:28]} 13. Qh3 {[%clk 0:02:55.5]} 13... Ne4 {[%clk 0:02:12.9]} 14. Rad1
{[%clk 0:02:43.1]} 14... f6 {[%clk 0:01:56.9]} 15. Nxd7 {[%clk 0:02:32.8]} 15...
Rxd7 {[%clk 0:01:51.3]} 16. cxd5 {[%clk 0:02:31.8]} 16... exd5 {[%clk
0:01:48.6]} 17. Nxe4 {[%clk 0:02:32]} 17... dxe4 {[%clk 0:01:47.7]} 18. Bc4+
{[%clk 0:02:32]} 18... Kh8 {[%clk 0:01:43.4]} 19. dxc5 {[%clk 0:02:32.2]} 19...
Bxc5 {[%clk 0:01:41.6]} 20. Rxd7 {[%clk 0:02:25.3]} 1-0

[Event "Late-Titled-Tuesday-Blitz-December-26-2023"]
[Site "Chess.com"]
[Date "2023.12.26"]
[Round "1"]
[White "KnobbedHornbill"]
[Black "Vaporwaffle94"]
[Result "1-0"]
[WhiteElo "2524"]
[BlackElo "2037"]
[TimeControl "180+1"]
[EndTime "14:02:58 PST"]
[Termination "KnobbedHornbill won by resignation"]

1. d4 {[%clk 0:03:00.9]} 1... Nf6 {[%clk 0:02:59.8]} 2. c4 {[%clk 0:03:01.4]}
2... e6 {[%clk 0:03:00.2]} 3. g3 {[%clk 0:03:01.9]} 3... d5 {[%clk 0:02:59]} 4.
Nf3 {[%clk 0:03:02]} 4... Be7 {[%clk 0:02:59.2]} 5. Bg2 {[%clk 0:03:02.6]} 5...
O-O {[%clk 0:02:59.6]} 6. O-O {[%clk 0:03:03.3]} 6... dxc4 {[%clk 0:03:00.1]} 7.
Qc2 {[%clk 0:03:03.5]} 7... a6 {[%clk 0:03:00.3]} 8. a4 {[%clk 0:03:04.1]} 8...
Bd7 {[%clk 0:02:58.8]} 9. Qxc4 {[%clk 0:03:04.1]} 9... Bc6 {[%clk 0:02:58]} 10.
Bf4 {[%clk 0:03:04.3]} 10... Bd6 {[%clk 0:02:57]} 11. Qc1 {[%clk 0:03:03.8]}
11... Qe7 {[%clk 0:02:41.5]} 12. Nc3 {[%clk 0:03:02.5]} 12... Nbd7 {[%clk
0:02:41.5]} 13. Re1 {[%clk 0:02:57.7]} 13... h6 {[%clk 0:02:41.2]} 14. e4 {[%clk
0:02:56.6]} 14... Bxf4 {[%clk 0:02:41.1]} 15. Qxf4 {[%clk 0:02:54.4]} 15... Rfe8
{[%clk 0:02:34.9]} 16. d5 {[%clk 0:02:48.1]} 16... e5 {[%clk 0:02:17.6]} 17. Qc1
{[%clk 0:02:34.3]} 17... Nxe4 {[%clk 0:01:57.9]} 18. dxc6 {[%clk 0:02:30]} 18...
Nxc3 {[%clk 0:01:57.1]} 19. cxd7 {[%clk 0:02:29]} 19... Qxd7 {[%clk 0:01:32.8]}
20. Qxc3 {[%clk 0:02:26.7]} 1-0

[Event "Late-Titled-Tuesday-Blitz-December-26-2023"]
[Site "Chess.com"]
[Date "2023.12.26"]
[Round "1"]
[White "lucliasco"]
[Black "PapaieDudu"]
[Result "1-0"]
[WhiteElo "2927"]
[BlackElo "2494"]
[TimeControl "180+1"]
[EndTime "14:03:22 PST"]
[Termination "lucliasco won by resignation"]

1. e4 {[%clk 0:02:57.3]} 1... c5 {[%clk 0:03:00]} 2. Nf3 {[%clk 0:02:55.4]} 2...
d6 {[%clk 0:03:00.2]} 3. Nc3 {[%clk 0:02:55]} 3... Nf6 {[%clk 0:02:59.4]} 4. d4
{[%clk 0:02:53.9]} 4... cxd4 {[%clk 0:03:00.3]} 5. Qxd4 {[%clk 0:02:53.1]} 5...
Nc6 {[%clk 0:02:58.7]} 6. Bb5 {[%clk 0:02:53.3]} 6... Bd7 {[%clk 0:02:57]} 7.
Bxc6 {[%clk 0:02:53.7]} 7... bxc6 {[%clk 0:02:56.1]} 8. Bg5 {[%clk 0:02:53.5]}
8... h6 {[%clk 0:02:55.7]} 9. Bh4 {[%clk 0:02:51.9]} 9... g5 {[%clk 0:02:53.7]}
10. Bg3 {[%clk 0:02:52.1]} 10... Bg7 {[%clk 0:02:53.6]} 11. e5 {[%clk
0:02:51.1]} 11... Nh5 {[%clk 0:02:50.9]} 12. Qe3 {[%clk 0:02:46.8]} 12... d5
{[%clk 0:02:46.9]} 13. O-O-O {[%clk 0:02:44.7]} 13... O-O {[%clk 0:02:40.6]} 14.
h4 {[%clk 0:02:36]} 14... Nxg3 {[%clk 0:02:30.7]} 15. hxg5 {[%clk 0:02:36.2]}
15... Nf5 {[%clk 0:01:55.2]} 16. Qf4 {[%clk 0:02:34.3]} 16... hxg5 {[%clk
0:01:51.5]} 17. Qxg5 {[%clk 0:02:23.5]} 17... f6 {[%clk 0:01:43.9]} 18. Qg6
{[%clk 0:02:23]} 18... fxe5 {[%clk 0:01:23.9]} 19. Ng5 {[%clk 0:02:18.9]} 19...
Rf6 {[%clk 0:01:18.2]} 20. Rh8+ {[%clk 0:02:17.8]} 1-0

[Event "Late-Titled-Tuesday-Blitz-December-26-2023"]
[Site "Chess.com"]
[Date "2023.12.26"]
[Round "1"]
[White "GMBenjaminBok"]
[Black "ExchangeAB"]
[Result "1-0"]
[WhiteElo "2962"]
[BlackElo "2495"]
[TimeControl "180+1"]
[EndTime "14:03:29 PST"]
[Termination "GMBenjaminBok won by resignation"]

1. d4 {[%clk 0:03:00.9]} 1... d5 {[%clk 0:03:00]} 2. c4 {[%clk 0:03:00.4]} 2...
c6 {[%clk 0:03:00.9]} 3. Nf3 {[%clk 0:03:00]} 3... Nf6 {[%clk 0:03:01.6]} 4.
cxd5 {[%clk 0:03:00.4]} 4... cxd5 {[%clk 0:03:01.9]} 5. Nc3 {[%clk 0:03:01]}
5... Nc6 {[%clk 0:03:02.3]} 6. Bf4 {[%clk 0:03:00.9]} 6... Bf5 {[%clk
0:03:02.5]} 7. e3 {[%clk 0:03:00.7]} 7... e6 {[%clk 0:03:02.7]} 8. Qb3 {[%clk
0:03:00.7]} 8... Bb4 {[%clk 0:03:02.5]} 9. Ne5 {[%clk 0:02:59.8]} 9... O-O
{[%clk 0:03:01.3]} 10. Nxc6 {[%clk 0:02:59.7]} 10... Bxc3+ {[%clk 0:03:01.1]}
11. Qxc3 {[%clk 0:03:00.6]} 11... bxc6 {[%clk 0:03:00.8]} 12. Qa3 {[%clk
0:03:01.3]} 12... Qb6 {[%clk 0:02:56.2]} 13. Ba6 {[%clk 0:02:52]} 13... Nd7
{[%clk 0:02:26.3]} 14. Bd6 {[%clk 0:02:45.1]} 14... Rfd8 {[%clk 0:02:24.2]} 15.
O-O {[%clk 0:02:43.9]} 15... Nb8 {[%clk 0:02:08.2]} 16. Be2 {[%clk 0:02:39.7]}
16... a5 {[%clk 0:02:07.8]} 17. Rfc1 {[%clk 0:02:05.6]} 17... Na6 {[%clk
0:02:07.4]} 18. Rc3 {[%clk 0:02:03]} 18... Nb4 {[%clk 0:02:06.8]} 19. Bc5 {[%clk
0:01:59.1]} 19... Qb7 {[%clk 0:02:04.1]} 20. Rac1 {[%clk 0:01:56.5]} 20... h6
{[%clk 0:02:02.4]} 21. h3 {[%clk 0:01:55.7]} 21... Rac8 {[%clk 0:02:00]} 22.
Qxa5 {[%clk 0:01:50.3]} 22... Rb8 {[%clk 0:01:52.7]} 23. Rb3 {[%clk 0:01:44.1]}
1-0

[Event "Late-Titled-Tuesday-Blitz-December-26-2023"]
[Site "Chess.com"]
[Date "2023.12.26"]
[Round "1"]
[White "TheSilmarils"]
[Black "boracilek"]
[Result "1-0"]
[WhiteElo "2844"]
[BlackElo "2460"]
[TimeControl "180+1"]
[EndTime "14:03:46 PST"]
[Termination "TheSilmarils won by resignation"]

1. Nf3 {[%clk 0:02:59.7]} 1... g6 {[%clk 0:02:46.2]} 2. d4 {[%clk 0:02:58.5]}
2... Bg7 {[%clk 0:02:46.4]} 3. c4 {[%clk 0:02:58.9]} 3... d6 {[%clk 0:02:42.3]}
4. Nc3 {[%clk 0:02:57.7]} 4... Nf6 {[%clk 0:02:35]} 5. e4 {[%clk 0:02:57.7]}
5... O-O {[%clk 0:02:32.4]} 6. h3 {[%clk 0:02:58.3]} 6... e5 {[%clk 0:02:31.7]}
7. d5 {[%clk 0:02:58.8]} 7... Nh5 {[%clk 0:02:32]} 8. Nh2 {[%clk 0:02:58.4]}
8... Nf4 {[%clk 0:02:27.4]} 9. g3 {[%clk 0:02:54.8]} 9... Nh5 {[%clk 0:02:14.3]}
10. Be2 {[%clk 0:02:54.7]} 10... Nf6 {[%clk 0:02:14.3]} 11. g4 {[%clk
0:02:53.3]} 11... a5 {[%clk 0:02:12.5]} 12. Be3 {[%clk 0:02:38]} 12... Na6
{[%clk 0:02:10.2]} 13. Nf1 {[%clk 0:02:35]} 13... Nc5 {[%clk 0:02:05.5]} 14. Ng3
{[%clk 0:02:35.2]} 14... Bd7 {[%clk 0:02:02.6]} 15. h4 {[%clk 0:02:28.1]} 15...
Ne8 {[%clk 0:01:58.6]} 16. h5 {[%clk 0:02:25.5]} 16... f5 {[%clk 0:01:54.4]} 17.
hxg6 {[%clk 0:02:21.4]} 17... f4 {[%clk 0:01:51.6]} 18. gxh7+ {[%clk 0:02:16.9]}
18... Kh8 {[%clk 0:01:51.6]} 19. Bxc5 {[%clk 0:02:17.2]} 19... fxg3 {[%clk
0:01:48.2]} 20. Be3 {[%clk 0:02:15.8]} 20... gxf2+ {[%clk 0:01:44.9]} 21. Bxf2
{[%clk 0:02:16.2]} 21... Qf6 {[%clk 0:01:42.5]} 22. Be3 {[%clk 0:02:12.6]} 22...
Qg6 {[%clk 0:01:41.2]} 23. g5 {[%clk 0:02:03.7]} 23... c5 {[%clk 0:01:23.6]} 24.
Bh5 {[%clk 0:02:00.4]} 1-0

[Event "Late-Titled-Tuesday-Blitz-December-26-2023"]
[Site "Chess.com"]
[Date "2023.12.26"]
[Round "1"]
[White "IMRosen"]
[Black "Abduzhaparov"]
[Result "1-0"]
[WhiteElo "2692"]
[BlackElo "2394"]
[TimeControl "180+1"]
[EndTime "14:03:48 PST"]
[Termination "IMRosen won by resignation"]

1. e4 {[%clk 0:03:00.9]} 1... d6 {[%clk 0:03:00.9]} 2. Bc4 {[%clk 0:02:54.7]}
2... Nf6 {[%clk 0:03:01.8]} 3. Qe2 {[%clk 0:02:54.4]} 3... e5 {[%clk 0:03:02.7]}
4. Nc3 {[%clk 0:02:53.7]} 4... Be7 {[%clk 0:03:02.3]} 5. d3 {[%clk 0:02:52.8]}
5... c6 {[%clk 0:03:02.1]} 6. Bb3 {[%clk 0:02:49.4]} 6... b5 {[%clk 0:03:00.4]}
7. f4 {[%clk 0:02:43.6]} 7... Nbd7 {[%clk 0:02:55.6]} 8. Nf3 {[%clk 0:02:39]}
8... O-O {[%clk 0:02:55.1]} 9. O-O {[%clk 0:02:38.8]} 9... a5 {[%clk 0:02:51.8]}
10. a4 {[%clk 0:02:38.1]} 10... b4 {[%clk 0:02:51.6]} 11. Nd1 {[%clk 0:02:38.4]}
11... Nc5 {[%clk 0:02:49.8]} 12. Bc4 {[%clk 0:02:34.3]} 12... exf4 {[%clk
0:02:35.8]} 13. Bxf4 {[%clk 0:02:33.7]} 13... d5 {[%clk 0:02:33.7]} 14. exd5
{[%clk 0:02:25.5]} 14... cxd5 {[%clk 0:02:33.5]} 15. Bb5 {[%clk 0:02:25.9]}
15... Bg4 {[%clk 0:02:19.6]} 16. Ne3 {[%clk 0:02:20.9]} 16... Ne6 {[%clk
0:02:06.2]} 17. Be5 {[%clk 0:02:13.6]} 17... Qb6 {[%clk 0:01:56]} 18. Kh1 {[%clk
0:02:07.6]} 18... Bxf3 {[%clk 0:01:26]} 19. Qxf3 {[%clk 0:02:05.7]} 19... d4
{[%clk 0:01:18.6]} 20. Nf5 {[%clk 0:02:02.5]} 1-0

[Event "Late-Titled-Tuesday-Blitz-December-26-2023"]
[Site "Chess.com"]
[Date "2023.12.26"]
[Round "1"]
[White "chegueps"]
[Black "Zadar321"]
[Result "1-0"]
[WhiteElo "2790"]
[BlackElo "2444"]
[TimeControl "180+1"]
[EndTime "14:03:51 PST"]
[Termination "chegueps won by resignation"]

1. d4 {[%clk 0:02:59.9]} 1... Nf6 {[%clk 0:03:00]} 2. Nf3 {[%clk 0:02:59.5]}
2... e6 {[%clk 0:03:00.1]} 3. Bg5 {[%clk 0:02:59.7]} 3... Be7 {[%clk 0:02:58.2]}
4. e3 {[%clk 0:02:59.9]} 4... d5 {[%clk 0:02:58.5]} 5. Nbd2 {[%clk 0:03:00.6]}
5... Ne4 {[%clk 0:02:58.5]} 6. Nxe4 {[%clk 0:02:57.2]} 6... dxe4 {[%clk
0:02:57.8]} 7. Bxe7 {[%clk 0:02:57.9]} 7... Qxe7 {[%clk 0:02:58.2]} 8. Nd2
{[%clk 0:02:58.7]} 8... f5 {[%clk 0:02:58.5]} 9. Be2 {[%clk 0:02:47.6]} 9... O-O
{[%clk 0:02:58.2]} 10. O-O {[%clk 0:02:47.2]} 10... e5 {[%clk 0:02:58.3]} 11.
dxe5 {[%clk 0:02:35.4]} 11... Qxe5 {[%clk 0:02:58.2]} 12. Nc4 {[%clk 0:02:36.3]}
12... Qe7 {[%clk 0:02:58.2]} 13. Qd2 {[%clk 0:02:30.2]} 13... Nc6 {[%clk
0:02:57.6]} 14. Qc3 {[%clk 0:02:26.6]} 14... Be6 {[%clk 0:02:51.8]} 15. a3
{[%clk 0:02:21.7]} 15... a5 {[%clk 0:02:49.4]} 16. Ne5 {[%clk 0:02:19.8]} 16...
Nxe5 {[%clk 0:02:43.7]} 17. Qxe5 {[%clk 0:02:20.7]} 17... Qd6 {[%clk 0:02:43.9]}
18. Qxd6 {[%clk 0:02:15.9]} 18... cxd6 {[%clk 0:02:44.8]} 19. Rfd1 {[%clk
0:02:16.4]} 19... d5 {[%clk 0:02:44.9]} 20. g3 {[%clk 0:02:11]} 20... Rfc8
{[%clk 0:02:44.8]} 21. c3 {[%clk 0:02:11.2]} 21... Kf7 {[%clk 0:02:44.6]} 22.
Rd4 {[%clk 0:02:10.4]} 22... Kf6 {[%clk 0:02:44.2]} 23. Bb5 {[%clk 0:02:06.3]}
23... Rc5 {[%clk 0:02:43.4]} 24. a4 {[%clk 0:01:59.4]} 24... Rac8 {[%clk
0:02:43.3]} 25. h4 {[%clk 0:01:57.4]} 25... h6 {[%clk 0:02:42.9]} 26. Kg2 {[%clk
0:01:48.3]} 26... R8c7 {[%clk 0:02:43.1]} 27. f3 {[%clk 0:01:44.7]} 27... exf3+
{[%clk 0:02:41.9]} 28. Kxf3 {[%clk 0:01:45.6]} 28... g5 {[%clk 0:02:42]} 29.
hxg5+ {[%clk 0:01:45.9]} 29... hxg5 {[%clk 0:02:42.9]} 30. Rh1 {[%clk
0:01:45.7]} 30... Kg7 {[%clk 0:02:41.9]} 31. Bd3 {[%clk 0:01:41.5]} 31... Rf7
{[%clk 0:02:38.8]} 32. Ke2 {[%clk 0:01:38.6]} 32... Rf6 {[%clk 0:02:38.6]} 33.
Kd2 {[%clk 0:01:34.3]} 33... b6 {[%clk 0:02:37]} 34. b4 {[%clk 0:01:33.8]} 34...
Rc7 {[%clk 0:02:30.8]} 35. g4 {[%clk 0:01:34.2]} 35... axb4 {[%clk 0:02:31.5]}
36. cxb4 {[%clk 0:01:33.9]} 36... fxg4 {[%clk 0:02:29.8]} 37. Rh7+ {[%clk
0:01:33.4]} 37... Kf8 {[%clk 0:02:29.9]} 38. Rxc7 {[%clk 0:01:34.3]} 38... g3
{[%clk 0:02:24.3]} 39. Rc1 {[%clk 0:01:33.8]} 39... Rf2+ {[%clk 0:02:23.9]} 40.
Be2 {[%clk 0:01:32.7]} 40... Bg4 {[%clk 0:02:23.8]} 41. Rxg4 {[%clk 0:01:32.6]}
1-0

[Event "Late-Titled-Tuesday-Blitz-December-26-2023"]
[Site "Chess.com"]
[Date "2023.12.26"]
[Round "1"]
[White "SocoLoco"]
[Black "bipe137"]
[Result "0-1"]
[WhiteElo "2120"]
[BlackElo "2536"]
[TimeControl "180+1"]
[EndTime "14:03:54 PST"]
[Termination "bipe137 won by resignation"]

1. e4 {[%clk 0:03:00.9]} 1... c5 {[%clk 0:03:00]} 2. c3 {[%clk 0:03:00.5]} 2...
Nf6 {[%clk 0:02:59.6]} 3. e5 {[%clk 0:03:00.4]} 3... Nd5 {[%clk 0:03:00]} 4. d4
{[%clk 0:03:00.6]} 4... cxd4 {[%clk 0:03:00.9]} 5. cxd4 {[%clk 0:03:00.9]} 5...
e6 {[%clk 0:03:01.1]} 6. Nc3 {[%clk 0:03:00.8]} 6... Nxc3 {[%clk 0:03:00.7]} 7.
bxc3 {[%clk 0:03:01.7]} 7... d6 {[%clk 0:03:01.5]} 8. exd6 {[%clk 0:03:01.1]}
8... Bxd6 {[%clk 0:03:01.4]} 9. Nf3 {[%clk 0:03:01.6]} 9... Qc7 {[%clk
0:03:01.6]} 10. Bb2 {[%clk 0:02:57.8]} 10... b6 {[%clk 0:03:01.6]} 11. Be2
{[%clk 0:02:57.9]} 11... Bb7 {[%clk 0:03:01.9]} 12. h3 {[%clk 0:02:58.2]} 12...
O-O {[%clk 0:03:02.1]} 13. O-O {[%clk 0:02:58.2]} 13... Nd7 {[%clk 0:03:02.6]}
14. Rc1 {[%clk 0:02:58.2]} 14... Rac8 {[%clk 0:03:02.5]} 15. c4 {[%clk
0:02:58.3]} 15... Qb8 {[%clk 0:03:02.5]} 16. Qd3 {[%clk 0:02:58]} 16... Nf6
{[%clk 0:03:02]} 17. Rfe1 {[%clk 0:02:56]} 17... Rfd8 {[%clk 0:03:01.7]} 18. a4
{[%clk 0:02:53.7]} 18... Qa8 {[%clk 0:03:01.7]} 19. Qe3 {[%clk 0:02:49.6]} 19...
Be7 {[%clk 0:02:57.7]} 20. a5 {[%clk 0:02:47.4]} 20... bxa5 {[%clk 0:02:57.4]}
21. Ne5 {[%clk 0:02:46.8]} 21... Bxg2 {[%clk 0:02:53.6]} 22. Qg3 {[%clk
0:02:44.8]} 22... Be4 {[%clk 0:02:49.6]} 23. h4 {[%clk 0:02:33.8]} 23... a4
{[%clk 0:02:49]} 24. h5 {[%clk 0:02:31.4]} 24... h6 {[%clk 0:02:48.7]} 25. Rc3
{[%clk 0:02:28.1]} 25... a3 {[%clk 0:02:48.5]} 26. Bxa3 {[%clk 0:02:27.5]} 26...
Bxa3 {[%clk 0:02:48.5]} 27. Rxa3 {[%clk 0:02:28.4]} 27... Rxd4 {[%clk
0:02:48.6]} 28. Rc1 {[%clk 0:02:09.2]} 28... Rd2 {[%clk 0:02:45.9]} 29. Qe3
{[%clk 0:02:07.2]} 29... Rcd8 {[%clk 0:02:45.4]} 30. c5 {[%clk 0:02:04.2]} 30...
Qd5 {[%clk 0:02:42]} 31. Nf3 {[%clk 0:01:49.3]} 31... Rxe2 {[%clk 0:02:38.7]}
32. Qxe2 {[%clk 0:01:42.5]} 32... Bxf3 {[%clk 0:02:38.9]} 33. Qxf3 {[%clk
0:01:42.3]} 33... Qg5+ {[%clk 0:02:39]} 34. Kh2 {[%clk 0:01:37.4]} 34... Qxc1
{[%clk 0:02:38.7]} 35. Rc3 {[%clk 0:01:37.9]} 35... Qg5 {[%clk 0:02:36]} 36. Qb7
{[%clk 0:01:28.7]} 36... Qxh5+ {[%clk 0:02:34.9]} 37. Kg2 {[%clk 0:01:28.9]}
37... Qd5+ {[%clk 0:02:34.6]} 38. Qxd5 {[%clk 0:01:27.8]} 38... Nxd5 {[%clk
0:02:35.5]} 39. Ra3 {[%clk 0:01:24.1]} 39... Rd7 {[%clk 0:02:35.2]} 0-1

[Event "Late-Titled-Tuesday-Blitz-December-26-2023"]
[Site "Chess.com"]
[Date "2023.12.26"]
[Round "1"]
[White "campochess"]
[Black "Aguiar94"]
[Result "0-1"]
[WhiteElo "2177"]
[BlackElo "2544"]
[TimeControl "180+1"]
[EndTime "14:03:55 PST"]
[Termination "Aguiar94 won by resignation"]

1. d4 {[%clk 0:02:59.4]} 1... Nf6 {[%clk 0:02:59.4]} 2. Bg5 {[%clk 0:02:58.3]}
2... c5 {[%clk 0:02:58.2]} 3. d5 {[%clk 0:02:57]} 3... Qb6 {[%clk 0:02:52.5]} 4.
Nc3 {[%clk 0:02:56.4]} 4... Qxb2 {[%clk 0:02:51.8]} 5. Bd2 {[%clk 0:02:56.4]}
5... Qb6 {[%clk 0:02:40.9]} 6. e4 {[%clk 0:02:56.1]} 6... d6 {[%clk 0:02:38.3]}
7. f4 {[%clk 0:02:54.6]} 7... g6 {[%clk 0:02:37.9]} 8. e5 {[%clk 0:02:52]} 8...
Nfd7 {[%clk 0:02:35.3]} 9. Nf3 {[%clk 0:02:47.8]} 9... a6 {[%clk 0:02:34.2]} 10.
Rb1 {[%clk 0:02:44.8]} 10... Qc7 {[%clk 0:02:33.8]} 11. Qe2 {[%clk 0:02:42.7]}
11... Bg7 {[%clk 0:02:29.9]} 12. exd6 {[%clk 0:02:23.8]} 12... Qxd6 {[%clk
0:02:30.8]} 13. Ng5 {[%clk 0:02:23.8]} 13... O-O {[%clk 0:02:27.2]} 14. Nge4
{[%clk 0:02:23.4]} 14... Qc7 {[%clk 0:02:25.8]} 15. d6 {[%clk 0:02:16.6]} 15...
exd6 {[%clk 0:02:22.2]} 16. Nd5 {[%clk 0:02:16.6]} 16... Qd8 {[%clk 0:02:22.5]}
17. Nxd6 {[%clk 0:02:15.8]} 17... Nc6 {[%clk 0:02:22.2]} 18. c3 {[%clk
0:02:01.1]} 18... Nf6 {[%clk 0:02:18.5]} 19. Nxc8 {[%clk 0:01:46]} 19... Rxc8
{[%clk 0:02:14.5]} 20. Nxf6+ {[%clk 0:01:43.1]} 20... Bxf6 {[%clk 0:02:12.7]}
21. Kf2 {[%clk 0:01:42.9]} 21... Re8 {[%clk 0:02:10.8]} 22. Qc4 {[%clk
0:01:34.4]} 22... Qxd2+ {[%clk 0:02:08.4]} 23. Be2 {[%clk 0:01:33.4]} 23... Bxc3
{[%clk 0:02:01.6]} 24. Rhd1 {[%clk 0:01:32.3]} 24... Bd4+ {[%clk 0:02:02]} 25.
Kf3 {[%clk 0:01:25.8]} 25... Qe3+ {[%clk 0:01:58.9]} 0-1

[Event "Late-Titled-Tuesday-Blitz-December-26-2023"]
[Site "Chess.com"]
[Date "2023.12.26"]
[Round "1"]
[White "Charodej1"]
[Black "TST2014"]
[Result "0-1"]
[WhiteElo "2259"]
[BlackElo "2583"]
[TimeControl "180+1"]
[EndTime "14:04:25 PST"]
[Termination "TST2014 won by resignation"]

1. e4 {[%clk 0:03:00.9]} 1... c5 {[%clk 0:02:59.5]} 2. Nf3 {[%clk 0:03:00.7]}
2... Nc6 {[%clk 0:02:59.2]} 3. d4 {[%clk 0:03:01.4]} 3... cxd4 {[%clk
0:02:59.2]} 4. Nxd4 {[%clk 0:03:02.2]} 4... Nf6 {[%clk 0:02:58.6]} 5. Nc3 {[%clk
0:03:01.9]} 5... d6 {[%clk 0:02:58.4]} 6. Bg5 {[%clk 0:03:00.5]} 6... e6 {[%clk
0:02:58.1]} 7. Qd2 {[%clk 0:03:00.1]} 7... a6 {[%clk 0:02:57.8]} 8. O-O-O {[%clk
0:02:53.9]} 8... Bd7 {[%clk 0:02:57.2]} 9. f4 {[%clk 0:02:52.7]} 9... h6 {[%clk
0:02:55.2]} 10. Bh4 {[%clk 0:02:49.7]} 10... g5 {[%clk 0:02:54.3]} 11. fxg5
{[%clk 0:02:37]} 11... Ng4 {[%clk 0:02:54]} 12. Nf3 {[%clk 0:02:11.4]} 12...
hxg5 {[%clk 0:02:53.1]} 13. Bxg5 {[%clk 0:02:10.8]} 13... f6 {[%clk 0:02:52.7]}
14. Bf4 {[%clk 0:02:07.5]} 14... e5 {[%clk 0:02:51.8]} 15. Kb1 {[%clk
0:01:31.3]} 15... exf4 {[%clk 0:02:48.7]} 16. Qxf4 {[%clk 0:01:32.2]} 16... Nf2
{[%clk 0:02:39.2]} 17. Bc4 {[%clk 0:01:26.2]} 17... Nxh1 {[%clk 0:02:34.1]} 18.
Nd5 {[%clk 0:01:14.5]} 18... Be7 {[%clk 0:02:24.9]} 19. Rxh1 {[%clk 0:00:29.5]}
19... Ne5 {[%clk 0:02:20.1]} 20. Nxe5 {[%clk 0:00:19]} 20... dxe5 {[%clk
0:02:18]} 0-1

[Event "Late-Titled-Tuesday-Blitz-December-26-2023"]
[Site "Chess.com"]
[Date "2023.12.26"]
[Round "1"]
[White "TheoSlade"]
[Black "penguingm1"]
[Result "0-1"]
[WhiteElo "2481"]
[BlackElo "2908"]
[TimeControl "180+1"]
[EndTime "14:04:29 PST"]
[Termination "penguingm1 won by resignation"]

1. d4 {[%clk 0:03:00.9]} 1... d5 {[%clk 0:02:59.5]} 2. c4 {[%clk 0:03:01.2]}
2... e6 {[%clk 0:02:59.5]} 3. Nf3 {[%clk 0:03:01.8]} 3... Nf6 {[%clk 0:02:59.6]}
4. g3 {[%clk 0:03:02.4]} 4... dxc4 {[%clk 0:03:00]} 5. Bg2 {[%clk 0:03:02.8]}
5... Nc6 {[%clk 0:03:00.4]} 6. Qa4 {[%clk 0:02:45.2]} 6... Bd7 {[%clk
0:03:00.3]} 7. Qxc4 {[%clk 0:02:42.3]} 7... Na5 {[%clk 0:03:00]} 8. Qc2 {[%clk
0:02:38.8]} 8... Rc8 {[%clk 0:02:59.1]} 9. O-O {[%clk 0:02:31.7]} 9... c5 {[%clk
0:02:59]} 10. Nc3 {[%clk 0:02:28.7]} 10... b5 {[%clk 0:02:59]} 11. dxc5 {[%clk
0:02:13.2]} 11... Bxc5 {[%clk 0:02:59.9]} 12. a3 {[%clk 0:02:08.1]} 12... Nc4
{[%clk 0:02:59.4]} 13. Bg5 {[%clk 0:01:51.2]} 13... h6 {[%clk 0:02:44.6]} 14.
Bxf6 {[%clk 0:01:49.7]} 14... Qxf6 {[%clk 0:02:45.5]} 15. Ne4 {[%clk 0:01:45.8]}
15... Qxb2 {[%clk 0:02:44]} 16. Qxb2 {[%clk 0:01:42.2]} 16... Nxb2 {[%clk
0:02:43.9]} 17. Rfc1 {[%clk 0:01:37.7]} 17... Nc4 {[%clk 0:02:38.2]} 18. Nxc5
{[%clk 0:01:36.1]} 18... Rxc5 {[%clk 0:02:38]} 19. a4 {[%clk 0:01:20.8]} 19...
bxa4 {[%clk 0:02:26.3]} 20. Nd2 {[%clk 0:01:19.2]} 20... Nxd2 {[%clk 0:02:26.3]}
21. Rxc5 {[%clk 0:01:19]} 21... Nb3 {[%clk 0:02:26.9]} 22. Rb1 {[%clk 0:00:52]}
22... Nxc5 {[%clk 0:02:26.2]} 23. Rb8+ {[%clk 0:00:52.3]} 23... Ke7 {[%clk
0:02:26.6]} 24. Rxh8 {[%clk 0:00:53.1]} 24... a3 {[%clk 0:02:27]} 25. Ra8 {[%clk
0:00:24.4]} 25... a6 {[%clk 0:02:26.5]} 26. Rxa6 {[%clk 0:00:15.2]} 26... Nxa6
{[%clk 0:02:26.2]} 0-1